fUSD/lending_fUSD_20260106
["ID","MTS","AMOUNT","RATE_DAILY","PERIOD"]
[400580627,1767731455616,-500.0,0.00043357,30]
[400580628,1767731455625,-500.0,0.00043357,30]
[400580629,1767731455635,-500.0,0.00043357,30]
[400580630,1767731455644,-500.0,0.00043357,30]
[400580631,1767731455653,-500.0,0.00043357,30]
[400580632,1767731455663,-500.0,0.00043357,30]
[400580633,1767731455672,-500.0,0.00043357,30]
[400580634,1767731455682,-500.0,0.00043357,30]
[400580635,1767731455691,-500.0,0.00043357,30]
[400580636,1767731455701,-500.0,0.00043357,30]
[400580637,1767731455710,-307.7435324,0.00043357,30]
[400580638,1767731455720,-254.0,0.00043357,30]
[400580639,1767731455729,-250.0,0.00043357,45]
[400580640,1767731455738,-2562.08208434,0.00043357,120]
[400580641,1767731455747,-465.27484984,0.0004336,120]
[400580642,1767731455756,-282.53552991,0.0004336,2]
[400580643,1767731455766,-178.61513242,0.0004336,8]
[400580644,1767731455775,-1233.595775,0.0004336,15]
[400580645,1767731455784,-3088.29445144,0.0004336,2]
[400580646,1767731455793,-535.04449244,0.00043364,11]
[400580647,1767731455802,-167.99433605,0.00043364,120]
[400580648,1767731455812,-704.85854174,0.0004337,3]
[400580649,1767731455821,-300.0,0.00043395,2]
[400580650,1767731455832,-15480.11203971,0.000434,30]
[400580651,1767731455841,-150.0,0.000434,66]
[400580652,1767731455850,-189.6,0.000434,27]
[400580653,1767731455859,-253.0,0.000434,42]
[400580654,1767731455869,-150.44,0.000434,90]
[400580655,1767731455878,-300.0,0.00043409,2]
[400580656,1767731455888,-300.0,0.00043411,2]
[400580657,1767731455897,-219.35995196,0.00043413,2]
[400580658,1767731455906,-1000.0,0.00043424,120]
[400580659,1767731455916,-153.0,0.00043424,120]
[400580660,1767731455925,-151.0,0.0004344,120]
[400580661,1767731455935,-800.0,0.00043443,16]
[400580662,1767731455944,-800.0,0.00043443,16]
[400580663,1767731455953,-800.0,0.00043443,16]
[400580664,1767731455962,-800.0,0.00043443,16]
[400580665,1767731455971,-800.0,0.00043443,16]
[400580666,1767731455980,-800.0,0.00043443,16]
[400580667,1767731455989,-800.0,0.00043443,16]
[400580668,1767731455999,-800.0,0.00043443,16]
[400580669,1767731456009,-800.0,0.00043443,16]
[400580670,1767731456019,-800.0,0.00043443,16]
[400580671,1767731456029,-800.0,0.00043443,16]
[400580672,1767731456038,-800.0,0.00043443,16]
[400580673,1767731456048,-800.0,0.00043443,16]
[400580674,1767731456057,-800.0,0.00043443,16]
[400580675,1767731456067,-800.0,0.00043443,16]
[400580676,1767731456076,-800.0,0.00043443,16]
[400580677,1767731456086,-204.536313,0.00043444,120]
[400580678,1767731456095,-500.0,0.00043451,120]
[400580679,1767731456105,-258.95421431,0.00043452,70]
[400580680,1767731456114,-13514.39036148,0.00043452,2]
[400580681,1767731456124,-9871.92465243,0.00043452,4]
[400580682,1767731456133,-150.0,0.00043452,30]
[400580683,1767731456143,-150.0,0.00043452,30]
[400580684,1767731456152,-150.0,0.00043452,30]
[400580685,1767731456161,-150.0,0.00043452,30]
[400580686,1767731456171,-150.0,0.00043452,30]
[400580687,1767731456181,-150.0,0.00043452,30]
[400580688,1767731456191,-150.0,0.00043452,30]
[400580689,1767731456200,-178.99,0.00043452,30]
[400580690,1767731456209,-466.43,0.00043452,30]
[400580691,1767731456219,-171.25,0.00043452,30]
[400580692,1767731456228,-661.18,0.00043452,30]
[400580693,1767731456238,-178.99,0.00043452,30]
[400580694,1767731456247,-466.43,0.00043452,30]
[400580695,1767731456266,-661.18,0.00043452,30]
[400580696,1767731456277,-466.43,0.00043452,30]
[400580697,1767731456286,-171.25,0.00043452,30]
[400580698,1767731456296,-466.43,0.00043452,30]
[400580699,1767731456306,-661.18,0.00043452,30]
[400580700,1767731456317,-171.25,0.00043452,30]
[400580701,1767731456326,-466.43,0.00043452,30]
[400580702,1767731456336,-661.18,0.00043452,30]
[400580703,1767731456345,-171.25,0.00043452,30]
[400580704,1767731456355,-171.25,0.00043452,30]
[400580705,1767731456364,-171.25,0.00043452,30]
[400580706,1767731456374,-171.25,0.00043452,30]
[400580707,1767731456384,-171.25,0.00043452,30]
[400580708,1767731456394,-171.33,0.00043452,30]
[400580709,1767731456403,-661.18,0.00043452,30]
[400580710,1767731456413,-661.18,0.00043452,30]
[400580711,1767731456423,-661.18,0.00043452,30]
[400580712,1767731456433,-661.18,0.00043452,30]
[400580713,1767731456443,-151.0,0.00043455,120]
[400580714,1767731456453,-151.0,0.00043455,120]
[400580715,1767731456462,-151.0,0.00043455,120]
[400580716,1767731456482,-2540.568595,0.00043455,120]
[400580717,1767731456502,-151.0,0.00043455,120]
[400580718,1767731456516,-2540.568595,0.00043455,120]
[400580719,1767731456527,-2540.568595,0.00043455,120]
[400580720,1767731456545,-235.465203,0.00043455,120]
[400580721,1767731456555,-151.0,0.00043455,120]
[400580722,1767731456566,-2540.568595,0.00043455,120]
[400580723,1767731456576,-151.0,0.00043455,120]
[400580724,1767731456586,-151.0,0.00043455,120]
[400580725,1767731456596,-227.177642,0.00043455,120]
[400580726,1767731456607,-227.177642,0.00043455,120]
[400580727,1767731456616,-227.177642,0.00043455,120]
[400580728,1767731456626,-227.177642,0.00043455,120]
[400580729,1767731456637,-151.0,0.00043455,120]
[400580730,1767731456647,-151.0,0.00043455,120]
[400580731,1767731456660,-151.0,0.00043455,120]
[400580732,1767731456670,-151.0,0.00043455,120]
[400580733,1767731456680,-151.0,0.00043455,7]
[400580734,1767731456690,-151.0,0.00043455,7]
[400580735,1767731456699,-151.0,0.00043455,7]
[400580736,1767731456709,-250.0,0.00043456,45]
[400580737,1767731456719,-461.76650521,0.00043456,2]
[400580738,1767731456728,-2500.0,0.00043457,120]
[400580739,1767731456738,-2000.0,0.00043457,7]
[400580740,1767731456747,-200.0,0.00043457,7]
[400580741,1767731456757,-200.0,0.00043457,7]
[400580742,1767731456766,-1260.0,0.00043457,14]
[400580743,1767731456776,-151.0,0.00043457,14]
[400580744,1767731456785,-1260.0,0.00043457,14]
[400580745,1767731456794,-158.98978226,0.00043457,14]
[400580746,1767731456803,-1260.0,0.00043457,14]
[400580747,1767731456812,-1260.0,0.00043457,14]
[400580748,1767731456822,-1260.0,0.00043457,14]
[400580749,1767731456831,-983.9346905,0.00043457,14]
[400580750,1767731456840,-200.0,0.00043457,7]
[400580751,1767731456850,-154.72784194,0.00043457,120]
[400580752,1767731456864,-239.57666464,0.0004346,31]
[400580753,1767731456874,-18140.59719854,0.0004346,7]
[400580754,1767731457559,-2553.98606414,0.0004346,7]
[400580755,1767731457572,-11427.26537988,0.0004346,7]
[400580756,1767731458873,-151.0,0.00039,120]
[400580757,1767731458888,-151.0,0.00039,120]
[400580758,1767731458898,-151.0,0.000427,120]
[400580759,1767731458908,-151.0,0.000427,120]
[400580760,1767731458918,-124916.45170587,0.0004346,7]
[400580761,1767731459038,-151.0,0.00039,120]
[400580762,1767731459048,-1840544.28296415,0.0004346,7]
[400580763,1767731459080,-2771.69252347,0.0004346,7]
[400580764,1767731460803,-3.11485806,0.00016158,2]
[400580765,1767731460837,-496.88514194,0.00016158,2]
[400580766,1767731460847,-370.37554062,0.00016158,2]
[400580767,1767731460891,-129.62445938,0.00016158,2]
[400580768,1767731460901,-500.0,0.00016158,2]
[400580769,1767731460911,-613.73375119,0.000179,2]
[400580770,1767731460920,-500.0,0.00019092,2]
[400580771,1767731460931,-613.73375117,0.0002228,2]
[400580772,1767731460940,-830.675,0.00025609,2]
[400580773,1767731460950,-613.73375117,0.0002666,2]
[400580774,1767731460959,-613.73375117,0.0003104,2]
[400580775,1767731460969,-613.73375117,0.0003542,2]
[400580776,1767731460979,-151.0,0.00039,120]
[400580777,1767731460989,-165.611489,0.00039,120]
[400580778,1767731460998,-151.0,0.00039,120]
[400580779,1767731461007,-151.0,0.00039,120]
[400580780,1767731461016,-151.0,0.00039,120]
[400580781,1767731461026,-613.73375117,0.000398,2]
[400580782,1767731461034,-178.99,0.0004263,30]
[400580783,1767731461044,-171.25,0.0004263,30]
[400580784,1767731461053,-151.0,0.000427,120]
[400580785,1767731461062,-151.0,0.000427,120]
[400580786,1767731461072,-151.0,0.000427,120]
[400580787,1767731461081,-246.162856,0.000427,120]
[400580788,1767731461090,-5100.93599827,0.0004346,7]
[400580789,1767731461271,500.0,0.00032876,120]
[400580790,1767731461550,-302.0,0.00024799,2]
[400580793,1767731509755,297.18,0.00015958,2]
[400580794,1767731530633,9702.83,0.00016049,2]
[400580795,1767731530659,10000.01,0.00016049,2]
[400580796,1767731530685,10000.01,0.00016049,2]
[400580797,1767731532464,525.51391371,0.00015356,2]
[400580798,1767731561778,1500.0,0.00031857,120]
[400580799,1767731586493,-220.82894331,0.00016048,2]
[400580800,1767731586517,-255.0,0.00016048,2]
[400580801,1767731586547,-24.17105669,0.00016048,2]
[400580802,1767731596770,-475.82894331,0.00016048,2]
[400580803,1767731596799,-24.17105669,0.00016048,2]
[400580804,1767731600998,-475.82894331,0.00016048,2]
[400580805,1767731621398,-500.0,0.00016049,2]
[400580806,1767731623147,-500.0,0.00016049,2]
[400580807,1767731624425,-500.0,0.00016049,2]
[400580808,1767731625649,-500.0,0.00016049,2]
[400580809,1767731626760,-500.0,0.00016049,2]
[400580810,1767731627820,-500.0,0.00016049,2]
[400580811,1767731629021,-500.0,0.00016049,2]
[400580812,1767731630645,-500.0,0.00016049,2]
[400580813,1767731632107,-500.0,0.00016049,2]
[400580814,1767731632940,6446.24486203,0.00015949,2]
[400580815,1767731632966,981.03147857,0.00015949,2]
[400580816,1767731632993,1121.7945331,0.00015949,2]
[400580817,1767731633018,1790.08409533,0.00015949,2]
[400580818,1767731633043,264.06319968,0.00015949,2]
[400580819,1767731633068,611.91492467,0.00015949,2]
[400580820,1767731633465,-500.0,0.00015949,2]
[400580821,1767731634916,-500.0,0.00015949,2]
[400580822,1767731636062,-500.0,0.00015949,2]
[400580823,1767731637314,-500.0,0.00015949,2]
[400580824,1767731638862,-500.0,0.00015949,2]
[400580825,1767731640163,-500.0,0.00015949,2]
[400580826,1767731641580,-143.93679895,0.00015949,2]
[400580827,1767731641608,-300.0,0.00016048,2]
[400580828,1767731641635,-56.06320105,0.00016049,2]
[400580829,1767731643157,-500.0,0.00016049,2]
[400580830,1767731645029,-500.0,0.00016048,2]
[400580831,1767731646364,-500.0,0.00016049,2]
[400580832,1767731647823,-500.0,0.00016049,2]
[400580833,1767731649086,-500.0,0.00016049,2]
[400580834,1767731650323,-500.0,0.00016049,2]
[400580835,1767731651691,-500.0,0.00016049,2]
[400580836,1767731652955,-500.0,0.00016049,2]
[400580837,1767731654491,-500.0,0.00016049,2]
[400580838,1767731656256,-500.0,0.00016049,2]
[400580839,1767731657719,-500.0,0.00016049,2]
[400580840,1767731659251,-500.0,0.00016049,2]
[400580841,1767731660607,-500.0,0.00016049,2]
[400580842,1767731662124,-500.0,0.00016049,2]
[400580843,1767731663355,-500.0,0.00016049,2]
[400580844,1767731664584,-500.0,0.00016049,2]
[400580845,1767731665973,-500.0,0.00016049,2]
[400580846,1767731667389,-500.0,0.00016049,2]
[400580847,1767731668558,-500.0,0.00016049,2]
[400580849,1767731747740,500.0,0.00032876,120]
[400580850,1767731796857,-500.0,0.00015948,2]
[400580851,1767731796890,-158.75477781,0.00015949,2]
[400580852,1767731796919,-250.0,0.00015998,2]
[400580853,1767731796947,-300.0,0.00015998,2]
[400580854,1767731796974,-250.0,0.0001603,2]
[400580855,1767731797002,-261.27716895,0.0001603,2]
[400580856,1767731797031,-1200.0,0.00016047,2]
[400580857,1767731797060,-300.0,0.00016047,2]
[400580858,1767731797088,-262.0,0.00016047,2]
[400580859,1767731797116,-359.04444481,0.00016048,2]
[400580860,1767731797147,-377.7555617,0.00016048,2]
[400580861,1767731797176,-500.0,0.00016048,2]
[400580862,1767731797207,-62.34609346,0.00016048,2]
[400580863,1767731797883,-437.65390654,0.00016048,2]
[400580864,1767731797913,-486.16852038,0.00016048,2]
[400580865,1767731797948,-500.0,0.00016048,2]
[400580866,1767731797983,-500.0,0.00016048,2]
[400580867,1767731798017,-154.80653511,0.00016048,2]
[400580868,1767731798051,-500.0,0.00016048,2]
[400580869,1767731798083,-189.44667489,0.00016048,2]
[400580870,1767731798123,-500.0,0.00016048,2]
[400580871,1767731798160,-623.92233031,0.00016048,2]
[400580872,1767731798195,-500.0,0.00016048,2]
[400580873,1767731798229,-500.0,0.00016048,2]
[400580874,1767731801837,216.01406554,0.00015356,2]
[400580875,1767731801859,77.60568622,0.00015356,2]
[400580876,1767731821233,300.0,0.00016048,2]
[400580877,1767731826792,-500.0,0.00016049,2]
[400580878,1767731837201,-500.0,0.00016049,2]
[400580879,1767731844488,500.0,0.00016048,2]
[400580880,1767731867536,-500.0,0.00016049,2]
[400580881,1767731868968,-500.0,0.00016049,2]
[400580882,1767731870634,-500.0,0.00016049,2]
[400580883,1767731872705,-500.0,0.00016049,2]
[400580884,1767731874444,-500.0,0.00016049,2]
[400580885,1767731876154,-500.0,0.00016049,2]
[400580886,1767731877838,-500.0,0.00016049,2]
[400580887,1767731879543,-500.0,0.00016049,2]
[400580888,1767731881226,-500.0,0.00016049,2]
[400580889,1767731882946,-500.0,0.00016049,2]
[400580890,1767731884884,-500.0,0.00016049,2]
[400580891,1767731886346,-500.0,0.00016049,2]
[400580892,1767731888089,-500.0,0.00016049,2]
[400580893,1767731890160,-500.0,0.00016049,2]
[400580894,1767731891424,-500.0,0.00016049,2]
[400580895,1767731892929,-500.0,0.00016049,2]
[400580896,1767731894565,-500.0,0.00016049,2]
[400580897,1767731896226,-500.0,0.00016049,2]
[400580898,1767731897945,-500.0,0.00016049,2]
[400580899,1767731899569,-500.0,0.00016049,2]
[400580900,1767731901288,-500.0,0.00016049,2]
[400580901,1767731902993,-500.0,0.00016049,2]
[400580902,1767731904738,-500.0,0.00016049,2]
[400580903,1767731906452,-500.0,0.00016049,2]
[400580904,1767731908021,-500.0,0.00016049,2]
[400580905,1767731909434,-500.0,0.00016049,2]
[400580906,1767731911055,-500.0,0.00016049,2]
[400580907,1767731912478,-500.0,0.00016049,2]
[400580908,1767731913873,2084.011,0.00015949,2]
[400580909,1767731914130,-500.0,0.00016049,2]
[400580910,1767731924283,203.37762742,0.00016048,2]
[400580911,1767731938661,338.7228,0.00015949,2]
[400580912,1767731959041,350.58346769,0.00015949,2]
[400580913,1767732001474,1200.0,0.00016048,2]
[400580914,1767732001526,300.0,0.00016048,2]
[400580915,1767732003390,284.0,0.00016049,2]
[400580916,1767732090273,500.0,0.00016048,2]
[400580917,1767732094442,1825.801,0.00015728,2]
[400580918,1767732094482,162.889,0.00015728,2]
[400580919,1767732108907,500.0,0.00016048,2]
[400580920,1767732121439,300.0,0.00016048,2]
[400580921,1767732127909,200.0,0.00016049,2]
[400580922,1767732131847,500.0,0.00016049,2]
[400580923,1767732132129,200.0,0.00016049,2]
[400580924,1767732143288,173.01941867,0.00015949,2]
[400580925,1767732143313,10000.01,0.00015949,2]
[400580926,1767732143337,4014.92278064,0.00015949,2]
[400580927,1767732152779,500.0,0.00015949,2]
[400580928,1767732153408,500.0,0.00015949,2]
[400580929,1767732154417,500.0,0.00015949,2]
[400580930,1767732154919,500.0,0.00015949,2]
[400580931,1767732155568,500.0,0.00015949,2]
[400580932,1767732155826,500.0,0.00015949,2]
[400580933,1767732156844,500.0,0.00015949,2]
[400580934,1767732157260,500.0,0.00015949,2]
[400580935,1767732157581,500.0,0.00015949,2]
[400580936,1767732157912,500.0,0.00015949,2]
[400580937,1767732158394,500.0,0.00015949,2]
[400580938,1767732158785,307.7435324,0.00015949,2]
[400580939,1767732164256,151.0,0.00016049,2]
[400580940,1767732164999,151.0,0.00016049,2]
[400580941,1767732165565,151.0,0.00016049,2]
[400580942,1767732166195,151.0,0.00016049,2]
[400580943,1767732167406,151.0,0.00016049,2]
[400580944,1767732167546,151.0,0.00016049,2]
[400580945,1767732168080,151.0,0.00016049,2]
[400580946,1767732168748,178.88156463,0.00016049,2]
[400580947,1767732239383,306.76053422,0.00015949,2]
[400580948,1767732241578,300.0,0.00016048,2]
[400580949,1767732301244,1200.0,0.00016048,2]
[400580950,1767732301279,300.0,0.00016048,2]
[400580951,1767732361260,300.0,0.00016048,2]
[400580954,1767732400463,500.0,0.00016048,2]
[400580955,1767732427670,621.72362606,0.00016048,2]
[400580956,1767732430188,200.0,0.00016049,2]
[400580957,1767732430223,200.0,0.00016049,2]
[400580958,1767732467864,500.0,0.00016048,2]
[400580959,1767732468128,500.0,0.00016048,2]
[400580960,1767732468356,500.0,0.00016048,2]
[400580961,1767732476339,3027.90074269,0.00016049,2]
[400580962,1767732476364,6972.09925731,0.00016049,2]
[400580964,1767732541261,300.0,0.00016048,2]
[400580965,1767732545196,268.41546746,0.00015949,2]
[400580966,1767732546671,2459.49527523,0.00015949,2]
[400580967,1767732546698,10000.01,0.00015949,2]
[400580968,1767732546727,10000.01,0.00015949,2]
[400580969,1767732546757,10000.01,0.00015949,2]
[400580970,1767732546783,10000.01,0.00015949,2]
[400580971,1767732546813,10000.01,0.00015949,2]
[400580972,1767732546840,10000.01,0.00015949,2]
[400580973,1767732546867,10000.01,0.00015949,2]
[400580974,1767732546895,10000.01,0.00015949,2]
[400580975,1767732546923,10000.01,0.00015949,2]
[400580976,1767732560152,-150.0,0.00015703,2]
[400580977,1767732560179,-5205.084266,0.00015949,2]
[400580978,1767732584205,-2782.93830919,0.00015947,2]
[400580979,1767732584476,-4434.13338162,0.00015947,2]
[400580980,1767732605470,-1000.0,0.000155,2]
[400580981,1767732605505,-300.0,0.00015948,2]
[400580982,1767732605538,-1200.0,0.00015948,2]
[400580983,1767732605571,-300.0,0.00015948,2]
[400580984,1767732605604,-283.0,0.00015949,2]
[400580985,1767732608608,-106.60367874,0.00015939,2]
[400580986,1767732608630,-10000.01,0.00015939,2]
[400580987,1767732619234,-10000.01,0.00015949,2]
[400580988,1767732619264,-10000.01,0.00015949,2]
[400580989,1767732619440,-10000.01,0.00015949,2]
[400580990,1767732619585,-10000.01,0.00015949,2]
[400580991,1767732619701,-10000.01,0.00015949,2]
[400580992,1767732619887,-10000.01,0.00015949,2]
[400580993,1767732619929,-10000.01,0.00015949,2]
[400580994,1767732620079,-10000.01,0.00015949,2]
[400580997,1767732632099,-5760.91722418,0.00015949,2]
[400580998,1767732632111,-28817.19270372,0.00015949,2]
[400581004,1767732632555,-280.4923888,0.00015948,2]
[400581006,1767732632565,-390.98243085,0.00015948,2]
[400581008,1767732632574,-234.52518035,0.00015948,2]
[400581010,1767732632585,-265.47481965,0.00015948,2]
[400581012,1767732632594,-7039.22453903,0.00015949,2]
[400581018,1767732632831,-431.4027746,0.00015948,2]
[400581019,1767732632842,-39337.8829993,0.00015949,2]
[400581020,1767732632930,-727.09600104,0.00015949,2]
[400581021,1767732632941,-326.80947795,0.00015949,2]
[400581022,1767732633232,-1850.0227946,0.00015949,2]
[400581025,1767732638206,-500.0,0.00015948,2]
[400581026,1767732638215,-500.0,0.00015948,2]
[400581027,1767732638226,-334.8262731,0.00015948,2]
[400581028,1767732638236,-500.0,0.00015948,2]
[400581029,1767732638245,-299.49802061,0.00015948,2]
[400581030,1767732638255,-500.0,0.00015948,2]
[400581031,1767732638265,-500.0,0.00015948,2]
[400581032,1767732638274,-500.0,0.00015948,2]
[400581033,1767732638284,-500.0,0.00015948,2]
[400581034,1767732638294,-500.0,0.00015948,2]
[400581035,1767732638304,-500.0,0.00015948,2]
[400581036,1767732638315,-500.0,0.00015948,2]
[400581037,1767732638328,-500.0,0.00015948,2]
[400581038,1767732638338,-12958.42436044,0.00015949,2]
[400581039,1767732638350,-447.66174487,0.00015949,2]
[400581041,1767732638453,-6270.28,0.00015506,2]
[400581042,1767732638463,-725070.01861364,0.00015949,2]
[400581043,1767732638472,-1000.0,0.00016,2]
[400581044,1767732638482,-1000.0,0.00016048,2]
[400581045,1767732638491,-500.0,0.00016048,2]
[400581046,1767732638501,-500.0,0.00016048,2]
[400581048,1767732638511,-500.0,0.00016048,2]
[400581050,1767732638520,-200.0,0.00016049,2]
[400581052,1767732638530,-220.82894331,0.00016049,2]
[400581054,1767732638543,-220.82894331,0.00016049,2]
[400581056,1767732638552,-300.0,0.00016049,2]
[400581058,1767732638561,-195.0,0.00016049,2]
[400581060,1767732638572,-250.0,0.00016049,2]
[400581062,1767732638583,-1000.0,0.00016059,2]
[400581064,1767732638593,-300.0,0.00016077,2]
[400581066,1767732638602,-225.77958758,0.00016077,2]
[400581068,1767732638612,-195.0,0.00016077,2]
[400581070,1767732638621,-999.0,0.00016079,3]
[400581072,1767732638630,-2630.99,0.00016149,2]
[400581074,1767732638639,-500.0,0.00016157,2]
[400581076,1767732638649,-500.0,0.00016158,2]
[400581078,1767732638659,-500.0,0.00016158,2]
[400581080,1767732638668,-500.0,0.00016158,2]
[400581082,1767732638678,-500.0,0.00016158,2]
[400581084,1767732638687,-500.0,0.00016158,2]
[400581086,1767732638696,-500.0,0.00016158,2]
[400581088,1767732638706,-500.0,0.00016158,2]
[400581090,1767732638715,-500.0,0.00016158,2]
[400581092,1767732638724,-500.0,0.00016158,2]
[400581094,1767732638733,-500.0,0.00016158,2]
[400581096,1767732638742,-500.0,0.00016158,2]
[400581098,1767732638751,-500.0,0.00016158,2]
[400581100,1767732638760,-500.0,0.00016158,2]
[400581102,1767732638769,-500.0,0.00016158,2]
[400581104,1767732638779,-521.20759762,0.00016158,2]
[400581106,1767732638788,-500.0,0.00016158,2]
[400581108,1767732638798,-597.7787886,0.00016158,2]
[400581110,1767732638807,-500.0,0.00016158,2]
[400581112,1767732638816,-527.57264582,0.00016158,2]
[400581114,1767732638826,-500.0,0.00016158,2]
[400581116,1767732638838,-500.0,0.00016158,2]
[400581118,1767732638847,-500.0,0.00016158,2]
[400581120,1767732638856,-500.0,0.00016158,2]
[400581122,1767732638867,-500.0,0.00016158,2]
[400581124,1767732638878,-323.58,0.00016164,2]
[400581126,1767732638888,-200.0,0.00016167,2]
[400581128,1767732638897,-3203.34,0.000162,2]
[400581130,1767732638907,-2094.78,0.000162,2]
[400581132,1767732638918,-34863.0,0.000162,2]
[400581134,1767732638928,-9999.99,0.000162,2]
[400581137,1767732638937,-6310.62,0.000162,2]
[400581138,1767732638947,-150.99,0.000162,2]
[400581140,1767732638956,-1197.08,0.000162,2]
[400581142,1767732638966,-499.99,0.000162,2]
[400581144,1767732638975,-311.66,0.000162,2]
[400581147,1767732638985,-4999.99,0.000162,2]
[400581149,1767732638995,-9999.99,0.000162,2]
[400581150,1767732639004,-150.99,0.000162,2]
[400581153,1767732639013,-10017.91,0.000162,2]
[400581154,1767732639022,-9999.99,0.000162,2]
[400581156,1767732639032,-299.99,0.000162,4]
[400581158,1767732639041,-200.0,0.00016209,2]
[400581161,1767732639051,-246.49,0.00016321,2]
[400581163,1767732639060,-30177.95,0.00016321,2]
[400581165,1767732639070,-9008.55,0.00016321,2]
[400581167,1767732639082,-535.0444925,0.00016338,2]
[400581169,1767732639092,-200.0,0.00016372,2]
[400581171,1767732639101,-1587.38,0.00016438,2]
[400581173,1767732639110,-522.84309812,0.00016438,2]
[400581175,1767732639119,-522.84309812,0.00016438,2]
[400581177,1767732639128,-522.84309812,0.00016438,2]
[400581179,1767732639137,-522.84309812,0.00016438,2]
[400581181,1767732639147,-522.84309812,0.00016438,2]
[400581183,1767732639156,-522.84309812,0.00016438,2]
[400581185,1767732639165,-522.84309812,0.00016438,2]
[400581187,1767732639174,-522.84309812,0.00016438,2]
[400581189,1767732639183,-522.84309812,0.00016438,2]
[400581191,1767732639193,-522.84309812,0.00016438,2]
[400581193,1767732639203,-522.84309812,0.00016438,2]
[400581195,1767732639212,-522.84309812,0.00016438,2]
[400581197,1767732639221,-522.84309812,0.00016438,2]
[400581199,1767732639230,-522.84309812,0.00016438,2]
[400581201,1767732639239,-522.84309812,0.00016438,2]
[400581203,1767732639248,-522.84309812,0.00016438,2]
[400581205,1767732639256,-522.84309812,0.00016438,2]
[400581207,1767732639266,-522.84309812,0.00016438,2]
[400581209,1767732639275,-522.84309812,0.00016438,2]
[400581211,1767732639284,-522.84309812,0.00016438,2]
[400581213,1767732639293,-522.84309812,0.00016438,2]
[400581215,1767732639302,-522.84309812,0.00016438,2]
[400581216,1767732639313,-522.84309812,0.00016438,2]
[400581217,1767732639322,-522.84309812,0.00016438,2]
[400581218,1767732639330,-522.84309812,0.00016438,2]
[400581219,1767732639339,-522.84309812,0.00016438,2]
[400581220,1767732639348,-522.84309812,0.00016438,2]
[400581221,1767732639356,-522.84309812,0.00016438,2]
[400581222,1767732639365,-522.84309812,0.00016438,2]
[400581223,1767732639374,-522.84309812,0.00016438,2]
[400581224,1767732639383,-522.84309812,0.00016438,2]
[400581225,1767732639392,-522.84309812,0.00016438,2]
[400581226,1767732639401,-522.84309812,0.00016438,2]
[400581227,1767732639410,-522.84309812,0.00016438,2]
[400581228,1767732639418,-522.84309812,0.00016438,2]
[400581229,1767732639427,-522.84309812,0.00016438,2]
[400581231,1767732639436,-522.84309812,0.00016438,2]
[400581233,1767732639445,-522.84309812,0.00016438,2]
[400581235,1767732639454,-522.84309812,0.00016438,2]
[400581237,1767732639463,-522.84309812,0.00016438,2]
[400581239,1767732639472,-522.84309812,0.00016438,2]
[400581240,1767732639481,-522.84309812,0.00016438,2]
[400581243,1767732639491,-522.84309812,0.00016438,2]